bitfinex/quotes_ETHUSD_20241124
["timestamp","ask_amount","ask_price","bid_price","bid_amount"]
[1732420904955,0.2724008,3422.6,3421.3,0.85822384]
[1732420905284,0.98932461,3422.7,3421.3,0.85822384]
[1732420905477,0.27236886,3422.6,3421.3,0.85822384]
[1732420905683,0.98932461,3422.7,3421.6,0.2913]
[1732420905877,0.98932461,3422.7,3421.7,0.8126]
[1732420906443,0.27235935,3422.6,3421.7,0.8126]
[1732420906671,0.98932461,3422.7,3421.7,0.8126]
[1732420906871,0.2723517,3422.6,3421.7,0.8126]
[1732420907673,0.98932461,3422.7,3421.7,0.8126]
[1732420907879,0.98932461,3422.7,3421.8,0.84182088]
[1732420908113,0.98932461,3422.7,3421.8,0.8126]
[1732420908579,3.779071,3422.7,3421.8,0.8126]
[1732420908780,4.572571,3422.7,3421.8,0.8126]
[1732420908983,4.572571,3422.7,3421.8,0.78986206]
[1732420909205,2.78974639,3422.3,3421.8,0.78986206]
[1732420910516,2.78974639,3422.3,3421.9,0.2913]
[1732420910675,2.78974639,3422.3,3421.8,0.78986206]
[1732420913319,0.7935,3422.2,3421.1,0.2913]
[1732420913482,0.7935,3422.2,3421.4,1.1039]
[1732420914216,0.7935,3422.2,3421.4,0.8126]
[1732420915602,0.27226124,3422.1,3421.4,0.8126]
[1732420915802,2.78974639,3421.9,3421.4,0.8126]
[1732420916198,2.78974639,3421.9,3421.0,0.7574]
[1732420916403,2.78974639,3421.9,3421.2,0.7574]
[1732420916604,0.8077,3421.8,3421.2,0.7574]
[1732420916902,0.27227722,3421.7,3420.9,0.7574]
[1732420917101,2.78974639,3421.5,3420.9,0.7574]
[1732420930699,1.22718341,3421.2,3420.9,0.7574]
[1732420933174,0.825,3422.2,3420.9,0.7574]
[1732420933381,1.22718341,3421.5,3420.9,0.7574]
[1732420934298,1.22718341,3421.5,3421.1,0.7591]
[1732420934688,1.22718341,3421.5,3421.2,0.7591]
[1732420934886,1.22718341,3421.8,3421.2,0.7591]
[1732420935110,1.22718341,3421.8,3421.3,0.7591]
[1732420936479,1.22718341,3422.1,3421.3,0.7591]
[1732420936809,1.22718341,3421.8,3421.3,0.7591]
[1732420939691,1.22718341,3421.8,3421.5,0.7843]
[1732420940371,1.22718341,3421.8,3421.6,0.2913]
[1732420941114,1.22718341,3421.8,3421.5,0.7843]
[1732420952049,1.22718341,3421.8,3421.0,0.2913]
[1732420952215,2.02198341,3421.3,3420.6,0.7843]
[1732420952415,2.02198341,3421.3,3420.7,0.2913]
[1732420953751,0.7948,3421.3,3420.7,0.2913]
[1732420953951,0.7948,3421.3,3420.0,0.02923233]
[1732420953952,1.22718341,3420.8,3420.0,0.2913]
[1732420954325,1.22718341,3420.8,3420.2,0.2913]
[1732420955654,1.22718341,3420.8,3420.2,3.2913]
[1732420955848,1.22718341,3420.8,3420.2,0.2913]
[1732420956048,1.22718341,3422.0,3420.2,0.2913]
[1732420956049,1.22718341,3420.4,3420.2,0.2913]
[1732420956262,1.22718341,3420.4,3420.0,0.2913]
[1732420956563,1.22718341,3420.6,3420.0,0.2913]
[1732420960459,1.22718341,3420.6,3419.9,0.7843]
[1732420962759,3.0,3421.7,3419.9,0.7843]
[1732420962760,0.752,3422.2,3420.1,0.7764]
[1732420962938,1.22718341,3421.2,3420.3,0.7764]
[1732420964251,3.0,3421.9,3419.7,0.7764]
[1732420964252,1.22718341,3420.6,3419.7,0.7764]
[1732420964452,1.22718341,3420.6,3419.7,1.47309318]
[1732420964678,1.22718341,3420.6,3419.7,1.76439318]
[1732420965070,1.22718341,3421.0,3419.7,1.76439318]
[1732420965877,1.22718341,3420.7,3419.7,1.76439318]
[1732420966042,1.22718341,3420.7,3419.8,0.47936305]
[1732420966375,0.752,3420.6,3419.5,3.02923735]
[1732420966578,1.22718341,3420.0,3419.0,2.85]
[1732420966776,3.54650611,3420.2,3419.1,0.36264]
[1732420966939,3.54650611,3420.2,3418.9,0.7764]
[1732420974485,3.752,3420.5,3419.3,1.0677]
[1732420974664,3.752,3420.5,3419.4,0.7764]
[1732420978686,2.79450611,3420.2,3419.4,0.7764]
[1732420982665,0.752,3420.5,3419.4,0.7764]
[1732420983084,2.79450611,3420.6,3419.5,0.83084148]
[1732420983290,2.79450611,3420.6,3419.5,0.8016]
[1732420986916,1.22788758,3420.5,3419.6,0.8016]
[1732420990476,1.22788758,3420.5,3419.7,0.2913]
[1732420990684,1.22788758,3420.5,3419.8,0.8016]
[1732420994517,4.22788758,3421.0,3419.8,0.8016]
[1732420994518,0.8002,3421.0,3419.8,1.0929]
[1732420994826,1.49973787,3420.9,3420.0,1.0929]
[1732420995120,1.22788758,3420.9,3420.1,1.0929]
[1732420995324,1.22788758,3420.9,3420.2,0.8016]
[1732420997308,1.22788758,3420.6,3420.2,0.8016]
[1732420997727,1.22788758,3420.9,3420.2,0.8016]
[1732421000547,1.22788758,3420.9,3420.3,0.7706]
[1732421004049,1.22788758,3421.1,3420.3,0.7706]
[1732421005712,0.7577,3421.7,3420.4,0.7706]
[1732421006014,1.22788758,3421.3,3420.4,0.7706]
[1732421007724,1.22788758,3421.3,3420.5,0.02923072]
[1732421007913,1.22788758,3421.3,3420.6,0.7706]
[1732421008723,1.22788758,3421.3,3420.7,0.7706]
[1732421010860,0.7577,3421.7,3420.7,0.7706]
[1732421010861,1.22788758,3421.6,3420.7,0.7706]
[1732421011038,1.22788758,3421.6,3420.8,0.7706]
[1732421016464,1.22788758,3421.6,3421.1,0.2913]
[1732421016663,1.22788758,3421.7,3421.1,0.2913]
[1732421017290,1.22788758,3421.4,3421.0,0.8269]
[1732421018376,1.22788758,3421.4,3420.8,0.8269]
[1732421020655,1.22788758,3421.4,3420.9,0.2913]
[1732421021673,1.22788758,3421.0,3420.5,0.8269]
[1732421021971,3.0,3421.9,3419.9,0.8269]
[1732421021972,1.22788758,3420.6,3419.9,0.8269]
[1732421022178,1.22788758,3421.1,3420.0,0.85613564]
[1732421022336,1.22788758,3421.1,3420.2,0.8269]
[1732421022533,1.22788758,3421.4,3420.3,0.85613354]
[1732421022778,1.22788758,3421.6,3420.8,0.8269]
[1732421022954,1.22788758,3421.6,3420.8,1.1182]
[1732421023283,1.22788758,3421.6,3420.9,0.8269]
[1732421023639,1.22788758,3421.9,3420.9,0.8269]
[1732421024073,1.22788758,3421.9,3420.5,4.22788758]
[1732421024074,1.22788758,3421.9,3421.2,0.2913]
[1732421024259,1.22788758,3421.9,3421.3,0.8269]
[1732421025689,1.22788758,3421.7,3421.3,0.8269]
[1732421026066,1.22788758,3421.7,3420.8,1.1182]
[1732421026887,1.22788758,3421.7,3420.9,0.8269]
[1732421028967,1.22788758,3421.7,3420.9,1.1182]
[1732421029158,1.22788758,3421.7,3421.0,0.8269]
[1732421030557,3.0,3422.6,3421.0,0.8269]
[1732421030558,1.22788758,3421.4,3421.0,0.8269]
[1732421034601,1.22788758,3421.7,3421.0,0.8269]
[1732421035261,0.27209236,3421.6,3421.0,0.8269]
[1732421035492,0.27209236,3421.5,3421.0,0.8269]
[1732421035722,1.22788758,3421.7,3421.0,0.8269]
[1732421035897,0.27209262,3421.6,3421.0,0.8269]
[1732421036058,0.27209262,3421.5,3421.0,0.8269]
[1732421036266,1.22788758,3421.7,3421.0,0.8269]
[1732421036463,0.27212968,3421.6,3421.0,0.8269]
[1732421036701,0.27212968,3421.5,3421.0,0.8269]
[1732421036900,1.22788758,3421.7,3421.0,0.8269]
[1732421037101,0.2721304,3421.6,3421.0,0.8269]
[1732421037281,0.27213194,3421.5,3421.0,0.8269]
[1732421037465,1.22788758,3421.7,3421.0,0.8269]
[1732421037769,0.27213082,3421.6,3421.0,0.8269]
[1732421037973,1.22788758,3421.7,3421.0,1.1182]
[1732421038207,0.8307,3421.9,3421.0,1.1182]
[1732421038398,0.27213434,3421.8,3421.0,1.1182]
[1732421038604,0.27213434,3421.7,3421.0,1.1182]
[1732421038808,0.7586,3422.3,3421.2,0.8287]
[1732421039008,0.27214471,3422.2,3421.2,0.8287]
[1732421039302,1.50003229,3422.1,3421.2,0.8287]
[1732421039513,0.27214471,3422.0,3421.2,0.8287]
[1732421039683,0.27214471,3421.9,3421.2,0.8287]
[1732421039887,1.22788758,3422.1,3421.2,0.8287]
[1732421040083,0.27214103,3422.0,3421.2,0.8287]
[1732421040401,0.27214103,3421.9,3421.2,0.8287]
[1732421040602,1.22788758,3422.1,3421.3,0.2913]
[1732421040811,0.27213899,3422.0,3421.3,0.2913]
[1732421041104,0.27213899,3421.9,3421.3,0.2913]
[1732421041309,1.22788758,3422.1,3421.3,0.2913]
[1732421041505,0.27217362,3422.0,3421.3,0.2913]
[1732421041711,0.27217362,3421.9,3421.3,0.2913]
[1732421042013,1.22788758,3422.1,3421.3,0.2913]
[1732421042216,1.22788758,3421.8,3421.3,0.2913]
[1732421042387,1.22649758,3421.8,3421.3,0.2913]
[1732421042582,1.22649758,3421.8,3421.2,0.8287]
[1732421042583,1.22788758,3421.5,3421.2,0.8287]
[1732421042815,1.22788758,3421.5,3420.7,0.2913]
[1732421043168,1.98648758,3421.8,3420.8,0.2913]
[1732421043374,1.98648758,3421.8,3421.0,0.8287]
[1732421044311,0.27207025,3421.7,3421.0,0.8287]
[1732421044473,1.98648758,3421.8,3421.0,0.8287]
[1732421046090,1.22788758,3421.8,3421.0,0.8287]
[1732421046812,1.22788758,3422.1,3421.1,0.8287]
[1732421047014,0.27219791,3422.0,3421.1,0.8287]
[1732421047222,1.22788758,3422.1,3421.1,0.8287]
[1732421047402,0.27216429,3422.0,3421.1,0.8287]
[1732421047592,0.27216429,3421.9,3421.1,0.8287]
[1732421047902,1.22788758,3422.1,3421.1,0.8287]
[1732421048094,0.27218786,3422.0,3421.1,0.8287]
[1732421048300,1.22788758,3422.1,3421.1,0.8287]
[1732421048508,0.27217794,3422.0,3421.1,0.8287]
[1732421048806,0.27217794,3421.9,3421.1,0.8287]
[1732421049014,1.22788758,3422.1,3421.1,0.8287]
[1732421049214,0.2721621,3422.0,3421.1,0.8287]
[1732421049386,0.98932461,3422.7,3421.3,0.8287]
[1732421049387,1.22788758,3422.4,3421.3,0.8287]
[1732421049587,0.27217077,3422.3,3421.4,0.8287]
[1732421049786,1.22788758,3422.6,3421.7,0.2913]
[1732421049986,0.27217574,3422.5,3421.8,1.12]
[1732421050214,0.27217574,3422.4,3421.8,1.12]
[1732421050391,1.22788758,3422.6,3421.8,1.12]
[1732421050592,0.2721097,3422.5,3421.8,1.12]
[1732421050826,1.22788758,3422.3,3421.8,1.12]
[1732421053235,1.22788758,3422.3,3421.8,0.8287]
[1732421058642,0.98932461,3422.7,3421.9,0.8045]
[1732421058804,1.49979009,3422.6,3421.9,0.8045]
[1732421059004,1.22788758,3422.6,3421.9,0.8045]
[1732421060802,1.22788758,3422.6,3422.0,0.2912]
[1732421061109,1.22788758,3422.2,3421.9,0.8045]
[1732421061310,1.22437104,3422.2,3421.9,0.8045]
[1732421061512,1.22437104,3422.2,3421.6,0.8045]
[1732421067132,2.05628758,3422.5,3421.6,0.8045]
[1732421067354,0.27205972,3422.4,3421.6,0.8045]
[1732421067663,2.05628758,3422.5,3421.6,0.8045]
[1732421067839,0.27207249,3422.4,3421.6,0.8045]
[1732421068042,2.05628758,3422.5,3421.6,0.8045]
[1732421068251,0.27215589,3422.4,3421.6,0.8045]
[1732421068431,2.05628758,3422.5,3421.6,0.8045]
[1732421068631,0.27216313,3422.4,3421.6,0.8045]
[1732421068839,2.05628758,3422.5,3421.6,0.8045]
[1732421069043,0.27216111,3422.4,3421.6,0.8045]
[1732421069275,2.05628758,3422.5,3421.6,0.8045]
[1732421069432,0.27217967,3422.4,3421.6,0.8045]
[1732421069644,2.05628758,3422.5,3421.6,0.8045]
[1732421069845,0.27217816,3422.4,3421.6,0.8045]
[1732421070044,2.05628758,3422.5,3421.6,0.8045]
[1732421070255,0.27218815,3422.4,3421.6,0.8045]
[1732421070436,2.05628758,3422.5,3421.6,0.8045]
[1732421070851,0.27218745,3422.4,3421.6,0.8045]
[1732421071054,2.05628758,3422.5,3421.6,0.8045]
[1732421071250,0.27219747,3422.4,3421.6,0.8045]
[1732421071453,2.05628758,3422.5,3421.6,0.8045]
[1732421071684,0.27223433,3422.4,3421.6,0.8045]
[1732421071845,2.05628758,3422.5,3421.6,0.8045]
[1732421072182,0.27223752,3422.4,3421.6,0.8045]
[1732421072361,0.27223752,3422.3,3421.6,0.8045]
[1732421072543,2.05628758,3422.5,3421.6,0.8045]
[1732421072742,0.27226603,3422.4,3421.6,0.8045]
[1732421072943,0.27226603,3422.3,3421.6,0.8045]
[1732421073147,2.05628758,3422.5,3421.6,0.8045]
[1732421073345,0.27230825,3422.4,3421.6,0.8045]
[1732421073642,0.27230825,3422.3,3421.6,0.8045]
[1732421073867,0.8284,3422.5,3421.6,0.8045]
[1732421074043,0.2723112,3422.4,3421.6,0.8045]
[1732421074243,0.2723112,3422.3,3421.8,0.7641]
[1732421074479,1.74702461,3422.7,3421.9,0.7641]
[1732421074664,1.74702461,3422.7,3421.9,1.0553]
[1732421074874,0.27237704,3422.6,3421.9,1.0553]
[1732421075073,0.27237704,3422.5,3421.9,1.0553]
[1732421075380,0.98932461,3422.7,3421.9,0.2912]
[1732421075683,0.27243757,3422.6,3422.1,0.7826]
[1732421075858,0.98932461,3422.7,3422.1,1.0738]
[1732421076058,0.98932461,3422.7,3422.3,0.2912]
[1732421079755,0.98932461,3422.7,3422.4,0.2912]
[1732421080605,0.98932461,3422.7,3422.5,0.7826]
[1732421080753,0.98932461,3422.7,3422.6,1.0738]
[1732421080953,0.96039458,3422.7,3422.6,1.30396876]
[1732421081752,0.96039458,3422.7,3422.6,5.53185634]
[1732421081954,0.11952326,3422.7,3422.6,5.53185634]
[1732421083555,0.11952326,3422.7,3422.6,5.56106636]
[1732421084192,0.00569128,3424.1,3423.6,1.0738]
[1732421085296,0.00569128,3424.1,3423.6,0.7826]
[1732421085611,0.00569128,3424.1,3423.3,0.7631]
[1732421085612,1.23357886,3424.1,3423.3,0.7631]
[1732421085811,0.813,3423.4,3422.2,3.7631]
[1732421085983,0.813,3423.4,3422.2,0.7631]
[1732421086170,1.22788758,3423.3,3422.3,0.48609876]
[1732421086375,1.22788758,3423.2,3422.3,0.48609876]
[1732421086575,1.22788758,3423.2,3422.2,0.7631]
[1732421086997,2.04088758,3423.4,3422.2,0.7631]
[1732421087420,0.813,3423.4,3422.2,0.7631]
[1732421087615,1.22788758,3423.2,3422.3,0.19909876]
[1732421087791,1.22788758,3423.2,3422.2,0.7631]
[1732421088722,0.813,3423.4,3422.2,0.7631]
[1732421088886,0.2717002,3423.3,3422.2,0.7631]
[1732421089085,0.813,3423.4,3422.2,0.7631]
[1732421089321,0.27165667,3423.3,3422.2,0.7631]
[1732421089534,0.813,3423.4,3422.2,0.7631]
[1732421089821,0.27164131,3423.3,3422.2,0.7631]
[1732421090026,0.813,3423.4,3422.2,0.7631]
[1732421090203,0.27165447,3423.3,3422.2,0.7631]
[1732421090527,0.813,3423.4,3422.2,0.7631]
[1732421090829,0.27164586,3423.3,3422.2,0.7631]
[1732421090991,0.813,3423.4,3422.2,0.7631]
[1732421091192,0.27164906,3423.3,3422.2,0.7631]
[1732421091386,0.813,3423.4,3422.2,1.13941]
[1732421093046,0.813,3423.4,3422.3,0.7631]
[1732421093823,0.27161139,3423.3,3422.3,0.7631]
[1732421094001,0.813,3423.4,3422.3,0.7631]
[1732421094207,0.27162239,3423.3,3422.3,0.7631]
[1732421094538,0.813,3423.4,3422.3,0.7631]
[1732421094704,0.27162823,3423.3,3422.3,0.7631]
[1732421094904,0.27162823,3423.2,3422.3,0.7631]
[1732421095230,0.813,3423.4,3422.3,0.7631]
[1732421095412,0.27165615,3423.3,3422.3,0.7631]
[1732421095624,0.27165615,3423.2,3422.3,0.7631]
[1732421095817,0.27165615,3423.1,3422.3,0.7631]
[1732421096012,0.7921,3423.0,3422.3,0.7631]
[1732421097320,0.7921,3423.0,3421.7,0.2912]
[1732421098647,0.27173787,3422.9,3421.7,0.2912]
[1732421098851,0.7921,3423.0,3421.7,0.2912]
[1732421099008,0.27173145,3422.9,3421.7,0.2912]
[1732421099349,0.7921,3423.0,3421.7,0.2912]
[1732421099530,0.27175752,3422.9,3421.7,0.2912]
[1732421099749,0.7921,3423.0,3421.7,0.2912]
[1732421099941,0.27175644,3422.9,3421.7,0.2912]
[1732421100139,0.7921,3423.0,3421.7,0.2912]
[1732421100365,0.27178343,3422.9,3421.7,0.2912]
[1732421100663,0.27178343,3422.8,3421.7,0.2912]
[1732421100882,0.27178343,3422.7,3421.7,0.2912]
[1732421101025,0.27178343,3422.9,3421.7,0.2912]
[1732421101227,0.7921,3422.7,3421.6,0.7945]
[1732421101528,0.27183786,3422.6,3421.6,0.7945]
[1732421101845,0.7921,3422.7,3421.6,0.7945]
[1732421102158,0.27181192,3422.6,3421.6,0.7945]
[1732421102455,0.27181192,3422.5,3421.6,0.7945]
[1732421102657,0.7921,3422.7,3421.6,0.7945]
[1732421102826,0.2718156,3422.6,3421.6,0.7945]
[1732421103031,0.27181766,3422.5,3421.6,0.7945]
[1732421103336,0.7921,3422.7,3421.6,0.7945]
[1732421103565,0.27182033,3422.6,3421.6,0.7945]
[1732421103768,0.7921,3422.7,3421.6,0.7945]
[1732421103945,0.27179409,3422.6,3421.6,0.7945]
[1732421104149,0.7921,3422.7,3421.6,0.7945]
[1732421104380,0.27175854,3422.6,3421.6,0.7945]
[1732421104697,0.7921,3422.7,3421.6,0.7945]
[1732421104847,0.27172521,3422.6,3421.6,0.7945]
[1732421105048,0.7921,3422.7,3421.6,0.7945]
[1732421105294,0.27168794,3422.6,3421.6,0.7945]
[1732421105594,0.7921,3422.7,3421.6,0.7945]
[1732421105749,0.27163623,3422.6,3421.6,0.7945]
[1732421106091,0.7921,3422.7,3421.6,0.7945]
[1732421106397,0.27161162,3422.6,3421.6,0.7945]
[1732421106685,0.7921,3422.7,3421.6,0.7945]
[1732421108495,0.7921,3423.0,3421.6,0.7945]
[1732421108700,0.7921,3423.0,3420.9,3.41056924]
[1732421108701,1.22626567,3422.8,3421.8,0.7945]
[1732421109669,1.22626567,3423.2,3421.9,1.51746567]
[1732421109903,1.22626567,3423.2,3422.2,1.0857]
[1732421110104,1.22626567,3423.2,3422.3,1.0857]
[1732421110268,1.22626567,3423.4,3422.5,0.2912]
[1732421110467,1.22626567,3423.4,3422.7,0.7945]
[1732421110668,0.27156199,3423.3,3422.7,0.7945]
[1732421110870,1.22626567,3423.6,3422.7,0.7945]
[1732421111084,0.27158326,3423.5,3422.7,0.7945]
[1732421111319,1.22626567,3423.6,3422.7,0.7945]
[1732421111899,1.22626567,3423.8,3422.7,0.7945]
[1732421112244,0.27159639,3423.7,3422.7,0.7945]
[1732421112387,1.22626567,3423.8,3422.8,0.2912]
[1732421112583,0.27162184,3423.7,3423.0,0.7945]
[1732421112822,2.78832801,3424.0,3423.0,0.7945]
[1732421113121,0.27161703,3423.9,3423.0,0.7945]
[1732421113334,0.27164652,3423.8,3423.0,0.7945]
[1732421113486,2.78832801,3424.0,3423.0,0.7945]
[1732421113684,0.27165797,3423.9,3423.0,0.7945]
[1732421113892,2.78832801,3423.6,3423.0,0.7945]
[1732421114093,0.27165797,3423.5,3423.0,0.7945]
[1732421114423,2.78832801,3423.6,3423.0,0.7945]
[1732421114589,0.27172394,3423.5,3423.0,0.7945]
[1732421114781,2.78832801,3423.6,3423.0,0.7945]
[1732421114978,0.7921,3423.8,3423.0,0.7945]
[1732421115215,0.27181439,3423.7,3423.0,0.7945]
[1732421115390,0.27181439,3423.6,3423.0,0.7945]
[1732421115594,0.27181439,3423.5,3423.0,0.7945]
[1732421115796,3.7921,3424.0,3423.0,0.7945]
[1732421115991,0.27186841,3423.9,3423.0,0.7945]
[1732421116190,2.78832801,3423.7,3423.0,0.7945]
[1732421116522,0.27186841,3423.6,3423.0,0.7945]
[1732421116718,0.27186841,3423.5,3423.0,0.7945]
[1732421116923,2.78832801,3423.7,3423.0,0.7945]
[1732421117083,1.04865286,3423.6,3421.9,0.2912]
[1732421117288,1.04865286,3423.6,3421.7,0.02921505]
[1732421117289,0.27183759,3423.5,3422.4,0.7897]
[1732421117513,0.7768,3423.6,3422.4,0.7897]
[1732421117822,0.27183635,3423.5,3422.4,0.7897]
[1732421117980,0.27183635,3423.4,3422.4,0.7897]
[1732421118186,0.27181626,3423.3,3422.4,0.7897]
[1732421118487,0.7768,3423.6,3422.4,0.7897]
[1732421118690,0.27181896,3423.5,3422.4,0.7897]
[1732421118890,0.27181896,3423.4,3422.4,0.7897]
[1732421119115,0.27181896,3423.3,3422.4,0.7897]
[1732421119288,0.7768,3423.6,3422.4,0.7897]
[1732421119492,0.27180663,3423.5,3422.4,0.7897]
[1732421119710,0.27180663,3423.4,3422.4,0.7897]
[1732421119914,0.27180663,3423.3,3422.4,0.7897]
[1732421120098,0.7768,3423.6,3422.4,0.7897]
[1732421120301,0.27179574,3423.5,3422.4,0.7897]
[1732421120627,0.27179574,3423.4,3422.4,0.7897]
[1732421120829,0.8066,3423.8,3422.4,0.7897]
[1732421120991,0.27179664,3423.7,3422.4,0.7897]
[1732421121321,0.27179664,3423.6,3422.4,0.7897]
[1732421121642,0.27177878,3423.5,3422.5,0.7897]
[1732421121922,0.8066,3423.8,3422.5,0.7897]
[1732421122095,0.27173018,3423.7,3422.6,0.7897]
[1732421122299,0.27173018,3423.6,3422.6,0.7897]
[1732421122496,0.27173018,3423.5,3422.6,0.7897]
[1732421122697,3.0,3424.0,3422.7,0.7897]
[1732421122938,0.27172156,3423.9,3422.7,0.7897]
[1732421123090,0.27172156,3423.8,3422.8,0.81891343]
[1732421123289,0.27172156,3423.7,3422.8,0.81891343]
[1732421123512,2.78832801,3424.1,3422.8,0.81891343]
[1732421123725,0.27172466,3424.0,3422.8,0.81891343]
[1732421123922,0.27172466,3423.9,3422.8,0.7897]
[1732421124129,2.78832801,3424.1,3422.8,0.7897]
[1732421124301,0.27167747,3424.0,3422.8,0.7897]
[1732421124491,0.27167747,3423.9,3422.9,0.2912]
[1732421124824,2.78832801,3424.1,3423.1,1.0809]
[1732421125327,0.27167539,3424.0,3423.1,1.0809]
[1732421125526,0.27167539,3423.9,3423.2,0.7897]
[1732421125735,0.27156672,3423.8,3423.2,0.7897]
[1732421126056,2.78832801,3424.1,3423.2,0.7897]
[1732421126333,0.27152486,3424.0,3423.2,0.7897]
[1732421126629,0.27152486,3423.9,3423.2,0.7897]
[1732421126831,2.78832801,3424.5,3423.2,0.7897]
[1732421127031,0.27154919,3424.4,3423.2,0.7897]
[1732421127226,0.27154919,3424.3,3423.2,0.7897]
[1732421127526,2.78832801,3424.8,3423.4,0.7897]
[1732421127729,0.27148139,3424.7,3423.4,0.7897]
[1732421128026,0.27148139,3424.6,3423.5,0.7897]
[1732421128234,3.27148139,3424.7,3423.5,0.7897]
[1732421128397,0.27148139,3424.6,3423.5,0.7897]
[1732421128598,0.27142017,3424.5,3423.5,0.7897]
[1732421128825,0.27142017,3424.4,3423.5,0.7897]
[1732421129139,3.0,3424.7,3423.5,0.7897]
[1732421129435,0.27135499,3424.6,3423.5,0.7897]
[1732421129618,3.0,3424.7,3423.5,0.7897]
[1732421129619,0.27135499,3424.5,3423.5,0.7897]
[1732421129831,3.0,3424.7,3423.5,0.7897]
[1732421130032,0.27134958,3424.6,3423.5,0.7897]
[1732421130634,2.78832801,3424.5,3423.5,0.7897]
[1732421130951,0.27134958,3424.4,3423.5,0.7897]
[1732421131246,2.78832801,3424.5,3423.5,0.7897]
[1732421131443,0.27132868,3424.4,3423.5,0.7897]
[1732421131603,2.78832801,3424.5,3423.5,0.7897]
[1732421131808,0.27132445,3424.4,3423.5,0.7897]
[1732421132031,2.78832801,3424.5,3423.5,0.7897]
[1732421132264,0.27133331,3424.4,3423.5,0.7897]
[1732421132448,4.28534825,3424.9,3423.5,0.7897]
[1732421132605,0.27135279,3424.8,3423.5,0.7897]
[1732421132810,4.28534825,3424.9,3423.7,0.7897]
[1732421132811,0.27135279,3424.7,3423.7,0.7897]
[1732421133110,4.28534825,3424.9,3423.7,0.7897]
[1732421133325,0.27133573,3424.8,3423.7,0.7897]
[1732421133598,0.27133573,3424.7,3423.7,0.7897]
[1732421133725,0.27133573,3424.6,3423.7,0.7897]
[1732421134051,4.28534825,3424.9,3423.7,0.7897]
[1732421134238,0.27135429,3424.8,3423.7,0.7897]
[1732421134550,0.27135429,3424.7,3423.7,0.7897]
[1732421134758,0.27135429,3424.6,3423.7,0.7897]
[1732421135047,4.28534825,3424.9,3423.7,0.7897]
[1732421135237,3.27140719,3424.8,3423.7,0.7897]
[1732421135413,0.27140719,3424.7,3423.7,0.7897]
[1732421135614,1.46732855,3425.1,3423.7,0.7897]
[1732421135840,1.49702024,3424.9,3423.7,0.7897]
[1732421136025,0.27142023,3424.8,3423.7,0.7897]
[1732421136208,1.46732855,3425.1,3423.7,0.7897]
[1732421136412,1.46732855,3425.1,3423.3,0.2912]
[1732421136413,1.46732855,3425.1,3423.9,0.8183]
[1732421136847,1.49702024,3424.9,3424.0,0.02920071]
[1732421137054,3.0,3425.2,3424.1,0.8183]
[1732421137055,1.46732855,3425.1,3424.1,0.8183]
[1732421137212,1.49702024,3424.9,3424.1,0.8183]
[1732421137445,1.46732855,3425.1,3424.1,0.8183]
[1732421137682,1.49230296,3425.4,3424.1,0.8183]
[1732421137974,1.48318832,3425.2,3424.3,0.8183]
[1732421138195,1.49230296,3425.4,3424.3,0.8183]
[1732421138349,0.27147604,3425.3,3424.3,0.8183]
[1732421138691,1.75466436,3425.2,3424.3,0.8183]
[1732421138878,1.46732855,3425.1,3424.3,0.8183]
[1732421139050,1.49230296,3425.4,3424.3,0.8183]
[1732421139393,1.48318832,3425.2,3424.3,0.8183]
[1732421139694,1.49230296,3425.4,3424.3,0.8183]
[1732421139888,1.48318832,3425.2,3424.3,0.8183]
[1732421140180,1.49230296,3425.4,3424.3,0.8183]
[1732421140484,1.48318832,3425.2,3424.5,1.2e-07]
[1732421140658,1.49230296,3425.4,3424.5,1.2e-07]
[1732421143255,1.49230296,3425.4,3424.6,0.5312]
[1732421145010,4.28063097,3425.4,3424.6,0.5312]
[1732421145455,0.27129663,3425.3,3424.6,0.5312]
[1732421145661,4.28063097,3425.4,3424.6,0.5312]
[1732421146705,2.78832801,3425.0,3424.6,0.5312]
[1732421149149,2.78832801,3425.4,3424.6,0.5312]
[1732421150347,2.78832801,3425.4,3424.7,0.2912]
[1732421150519,2.78832801,3425.4,3424.8,0.5312]
[1732421155560,0.27184595,3425.3,3424.8,0.5312]
[1732421155765,2.78832801,3425.4,3424.8,0.5312]
[1732421155926,0.27183851,3425.3,3424.8,0.5312]
[1732421156263,2.78832801,3425.4,3424.8,0.5312]
[1732421156464,0.27190321,3425.3,3424.8,0.5312]
[1732421156767,1.22453715,3425.0,3424.8,0.5312]
[1732421159923,1.0,3425.5,3424.8,0.5312]
[1732421160166,1.22453715,3425.1,3424.8,0.5312]
[1732421162048,1.0,3425.5,3424.8,0.5312]
[1732421162359,1.22453715,3425.3,3424.9,0.5312]
[1732421162853,1.0,3425.5,3424.9,0.5312]
[1732421163169,1.0,3425.5,3425.2,0.2912]
[1732421163469,1.0,3425.5,3425.4,0.8224]
[1732421163847,0.99782803,3425.5,3425.4,0.8224]
[1732421164166,0.99513617,3425.5,3425.4,0.5312]
[1732421164365,0.99513617,3425.5,3425.4,0.8224]
[1732421164570,0.99513617,3425.5,3425.4,0.5312]
[1732421165832,0.99513617,3425.5,3425.4,0.70677372]
[1732421166065,0.99513617,3425.5,3425.4,0.99797372]
[1732421166931,0.99513617,3425.5,3425.4,0.8224]
[1732421167136,0.99513617,3425.5,3425.4,1.03978589]
[1732421168263,0.00569128,3426.0,3425.4,0.50858589]
[1732421168489,0.00569128,3426.0,3425.7,0.8224]
[1732421168718,0.00569128,3426.0,3425.8,0.21738589]
[1732421168895,0.00569128,3426.0,3425.9,0.74858589]
[1732421169792,0.00569128,3426.0,3425.9,1.03978589]
[1732421170381,0.00569128,3426.0,3425.9,0.74858589]
[1732421171856,0.00569128,3426.0,3425.9,0.5312]
[1732421172190,0.00569128,3426.0,3425.9,0.748078]
[1732421173571,0.00569128,3426.0,3425.9,0.5312]
[1732421173873,0.00569128,3426.0,3425.9,0.74795702]
[1732421178908,0.00569128,3426.0,3425.9,0.74785761]
[1732421179585,0.8048,3426.7,3426.6,8.76263069]
[1732421179789,0.8048,3426.7,3425.9,0.5312]
[1732421179991,0.9558133,3426.9,3426.0,0.24583752]
[1732421180229,0.9558133,3426.9,3426.1,0.2166549]
[1732421180408,0.9558133,3426.9,3426.2,0.2166549]